bitfinex/quotes_ETHUSD_20220109
["timestamp","ask_amount","ask_price","bid_price","bid_amount"]
[1641758147874,1.58745364,3199.3,3198.3,5.624]
[1641758148073,1.59484314,3199.3,3198.4,22.1559092]
[1641758148273,1.59484314,3199.3,3199.1,1.25945178]
[1641758148473,2.38144142,3199.5,3199.2,1.71860441]
[1641758148673,1.04944142,3199.5,3199.2,1.71860441]
[1641758148875,1.19034226,3199.8,3199.2,1.71860441]
[1641758149074,1.19034226,3199.8,3199.2,5.30772082]
[1641758149373,0.00170527,3199.6,3199.2,2.71860441]
[1641758149572,0.00170527,3199.6,3199.2,5.29159582]
[1641758149773,0.00113685,3199.5,3199.2,5.29159582]
[1641758149973,0.00113685,3199.5,3199.2,2.79673441]
[1641758150174,1.56627353,3199.7,3199.2,2.79673441]
[1641758150631,1.56399983,3199.7,3199.2,1.79673441]
[1641758150827,2.34546983,3199.7,3199.2,0.52813]
[1641758151125,2.34546983,3199.7,3198.8,0.45]
[1641758151325,1.13154371,3198.7,3198.5,5.0768]
[1641758151528,0.02061488,3199.1,3198.9,0.00227369]
[1641758151723,0.7816143,3199.2,3198.9,0.00227369]
[1641758151926,4.5392781,3199.4,3198.5,0.00454738]
[1641758152126,0.78161,3199.2,3198.5,0.00454738]
[1641758152931,1.49677061,3198.7,3198.5,0.00454738]
[1641758153735,1.49677061,3198.7,3198.2,0.00625266]
[1641758154188,0.78176,3198.6,3198.2,0.00625266]
[1641758154577,1.49677061,3198.7,3198.2,0.00625266]
[1641758154776,1.19034226,3199.1,3198.2,0.00625266]
[1641758155576,1.19034226,3199.2,3198.2,0.00625266]
[1641758155775,2.87005662,3199.0,3198.2,0.00625266]
[1641758155977,1.42368402,3198.5,3198.2,0.00625266]
[1641758156377,2.87005662,3199.0,3198.1,0.00682108]
[1641758156783,0.7817272,3198.7,3198.1,0.00682108]
[1641758156977,3.02378834,3198.6,3198.1,0.00682108]
[1641758157179,0.19552609,3198.7,3198.1,0.00682108]
[1641758157377,3.73459496,3198.7,3198.1,0.00682108]
[1641758157779,1.30265714,3198.2,3198.1,0.00682108]
[1641758158224,0.78187,3198.4,3198.1,0.00682108]
[1641758158425,0.78187,3198.4,3197.8,0.00852635]
[1641758158624,5.41578763,3198.6,3197.8,0.00852635]
[1641758158824,0.7817798,3198.5,3197.8,0.00852635]
[1641758159232,2.66177697,3198.3,3197.8,0.00852635]
[1641758159926,2.66177697,3198.3,3198.1,1.48995052]
[1641758160128,2.66177697,3198.3,3197.8,0.00852635]
[1641758160329,2.66177697,3198.5,3198.2,0.00625266]
[1641758160530,2.66177697,3198.5,3197.8,0.08667635]
[1641758160929,2.8017681,3198.6,3197.9,0.00795793]
[1641758161129,1.45802589,3198.3,3197.9,0.00795793]
[1641758161781,0.7818345,3198.2,3197.9,0.00795793]
[1641758162183,0.7818345,3198.2,3197.7,0.00909477]
[1641758162381,1.2933414,3197.7,3197.6,0.0096632]
[1641758162580,2.66177697,3198.2,3197.6,0.0096632]
[1641758163579,1.26136574,3197.9,3197.6,0.0096632]
[1641758163779,2.04329104,3197.9,3197.6,0.0096632]
[1641758165082,0.7819253,3197.9,3197.6,0.0096632]
[1641758165281,0.7818873,3198.0,3197.6,0.0096632]
[1641758166328,2.66179047,3197.9,3197.7,1.16965698]
[1641758166727,2.66179047,3197.9,3197.8,0.00852635]
[1641758168027,2.66179047,3198.2,3197.8,0.00852635]
[1641758168634,5.69083314,3198.7,3198.1,1.39052292]
[1641758168829,1.19034226,3198.7,3198.1,1.39052292]
[1641758169030,1.19034226,3198.7,3198.3,0.0224356]
[1641758169288,1.58764606,3198.9,3198.3,0.45]
[1641758169289,2.66154516,3198.6,3198.3,0.45]
[1641758169488,2.66154516,3198.6,3198.4,1.51711126]
[1641758169688,2.66154516,3198.6,3198.5,0.45]
[1641758169892,5.57868618,3199.1,3198.6,3.45]
[1641758170088,5.57868618,3199.1,3198.7,0.45]
[1641758170288,5.57868618,3199.1,3198.7,0.45341054]
[1641758170487,0.001643,3199.1,3198.8,0.00284211]
[1641758170689,6.57868618,3199.8,3198.9,1.95167056]
[1641758170889,6.57868618,3199.8,3199.0,1.02536226]
[1641758171090,6.57868618,3199.8,3199.2,0.78128]
[1641758171289,6.57868618,3199.8,3199.3,0.52813]
[1641758171788,1.0,3199.8,3199.4,1.34007041]
[1641758171989,1.0,3199.8,3199.4,1.79007041]
[1641758172928,1.0,3199.8,3199.4,1.49562202]
[1641758173725,1.0,3199.8,3199.4,2.27686202]
[1641758174223,1.0,3199.8,3199.4,1.49562202]
[1641758175823,1.0,3199.8,3199.4,1.94562202]
[1641758178685,1.0,3199.8,3199.4,3.30349624]
[1641758178883,1.68505027,3200.0,3199.4,6.70349624]
[1641758179085,1.68505027,3200.0,3199.4,7.70349624]
[1641758179784,1.68505027,3200.0,3199.4,8.48476624]
[1641758179985,1.68505027,3200.0,3199.4,5.08476624]
[1641758180631,0.01574639,3199.9,3199.8,1.35708567]
[1641758180828,1.68505027,3200.0,3199.8,1.80708567]
[1641758181028,0.00227369,3199.9,3199.8,1.80708567]
[1641758181629,0.00227369,3199.9,3199.8,0.45]
[1641758182835,3.25227369,3199.9,3199.8,0.45]
[1641758186593,0.00227369,3199.9,3199.8,0.45]
[1641758187597,2.93285449,3199.9,3199.8,0.45]
[1641758187799,0.0435014,3199.8,3199.1,0.00113684]
[1641758188043,0.0162766,3199.8,3199.1,0.00113684]
[1641758188234,0.00113685,3199.7,3198.9,0.00341054]
[1641758188634,0.00170527,3199.8,3198.9,1.47687833]
[1641758188833,0.781494,3199.7,3198.9,1.47687833]
[1641758189035,0.00113685,3199.7,3199.0,0.00284212]
[1641758190036,1.35422199,3199.6,3199.0,0.00284212]
[1641758190936,2.86679389,3199.5,3199.0,0.00284212]
[1641758191136,2.66087666,3199.5,3199.0,0.00284212]
[1641758191337,2.66087666,3199.5,3198.9,0.00341054]
[1641758191537,2.66087666,3199.4,3198.9,0.00341054]
[1641758191977,2.66087666,3199.4,3198.9,2.36998707]
[1641758192378,2.66087666,3199.5,3199.0,0.00284212]
[1641758193981,5.492403,3199.5,3199.0,0.00284212]
[1641758194179,2.66087666,3199.5,3199.0,0.00284212]
[1641758194385,2.66087666,3199.5,3198.9,0.00341054]
[1641758194781,1.35422199,3199.6,3198.9,0.00341054]
[1641758194782,2.66087666,3199.4,3198.9,0.00341054]
[1641758194980,1.24806393,3199.0,3198.8,0.45]
[1641758195437,0.00227369,3199.3,3198.8,0.45]
[1641758195830,0.00170527,3199.2,3198.8,0.45]
[1641758196231,0.00113685,3199.1,3198.8,0.45]
[1641758196432,0.00113685,3199.1,3199.0,1.5059852]
[1641758196632,2.66087666,3199.4,3199.0,1.5059852]
[1641758196836,0.00113685,3199.1,3199.0,1.5059852]
[1641758197032,0.00227369,3199.3,3199.1,1.28490722]
[1641758197232,2.66087666,3199.4,3199.2,0.45]
[1641758197433,2.66087666,3199.5,3199.2,0.45]
[1641758197634,0.00227369,3199.3,3199.2,0.45]
[1641758200681,0.00227369,3199.3,3198.8,0.45]
[1641758201081,0.00170527,3199.2,3198.8,0.45]
[1641758201286,1.24929174,3199.0,3198.8,1.76611293]
[1641758202082,1.24929174,3199.0,3198.8,0.45]
[1641758202933,0.00113685,3199.1,3198.8,0.45]
[1641758204129,0.00113685,3199.1,3198.9,1.04968623]
[1641758204929,0.00113685,3199.1,3198.9,1.34968623]
[1641758205130,0.00113685,3199.1,3199.0,0.75]
[1641758206535,0.00113685,3199.1,3199.0,0.45]
[1641758209082,1.71202017,3199.4,3199.0,0.45]
[1641758209278,1.24212055,3199.5,3199.0,0.45]
[1641758209479,0.00113684,3199.3,3199.0,0.45]
[1641758211342,1.18764638,3199.6,3199.0,0.45]
[1641758211343,1.16263527,3199.6,3199.0,0.45]
[1641758211544,1.16263527,3199.6,3199.1,0.00113684]
[1641758211746,0.00113685,3199.5,3199.1,0.45113684]
[1641758212142,0.00113685,3199.5,3199.2,1.29496922]
[1641758213348,0.00113685,3199.5,3199.1,0.75113684]
[1641758213651,0.00113685,3199.5,3199.1,1.05113684]
[1641758213852,0.00113685,3199.5,3199.1,0.75113684]
[1641758214887,1.27159161,3199.5,3199.1,0.75113684]
[1641758215088,1.27159161,3199.5,3199.0,1.18540943]
[1641758215287,0.00170527,3199.4,3199.1,0.45]
[1641758215688,0.00113684,3199.3,3199.1,0.45]
[1641758216088,0.00170527,3199.4,3199.1,0.45]
[1641758216288,0.00170527,3199.4,3199.1,0.75]
[1641758216488,0.00113684,3199.3,3199.1,0.75]
[1641758216993,0.00170527,3199.4,3199.1,0.75]
[1641758217388,1.27045476,3199.5,3199.1,0.75]
[1641758217389,0.00113684,3199.3,3199.1,0.75]
[1641758217788,0.00170527,3199.4,3199.1,0.75]
[1641758218054,0.00113684,3199.3,3199.1,0.75]
[1641758218452,0.00170527,3199.4,3199.1,0.75]
[1641758218857,0.00113684,3199.3,3199.1,0.75]
[1641758219252,0.00170527,3199.4,3199.1,0.75]
[1641758219657,0.00113684,3199.3,3199.1,0.75]
[1641758220054,0.00284211,3199.6,3199.1,0.75]
[1641758220556,0.00227369,3199.5,3199.1,0.75]
[1641758220955,1.58764606,3199.7,3199.1,0.75]
[1641758220956,0.00170527,3199.4,3199.1,0.75]
[1641758221355,0.00113684,3199.3,3199.1,0.75]
[1641758221783,0.01958267,3199.4,3199.1,0.75]
[1641758221986,1.19388047,3199.5,3199.1,0.75]
[1641758222186,0.00113684,3199.3,3199.1,0.75]
[1641758222382,1.19558574,3199.4,3199.1,0.75]
[1641758222582,1.19388047,3199.4,3199.1,0.75]
[1641758222783,0.00113684,3199.3,3199.1,0.75]
[1641758223582,0.00113684,3199.3,3199.1,1.05]
[1641758229986,0.55501731,3199.3,3199.1,1.05]
[1641758230683,0.55501731,3199.3,3199.1,1.83133]
[1641758230884,0.55501731,3199.3,3199.1,2.83133]
[1641758231082,0.55501731,3199.3,3199.1,1.83133]
[1641758231282,0.55501731,3199.3,3199.1,2.83133]
[1641758231683,0.55501731,3199.3,3199.2,2.55735095]
[1641758231884,0.55501731,3199.3,3199.2,3.00735095]
[1641758232184,0.55501731,3199.3,3199.2,0.45]
[1641758232784,0.55501731,3199.3,3199.2,2.79884899]
[1641758233040,4.24841556,3199.9,3199.2,3.79884899]
[1641758233239,4.24841556,3199.9,3199.5,0.7812]
[1641758233442,0.0022737,3199.7,3199.6,0.45]
[1641758234441,2.66034236,3199.8,3199.6,0.83027422]
[1641758234643,2.66034236,3199.8,3199.7,3.93106]
[1641758234945,0.17740903,3200.3,3200.0,1.68391343]
[1641758235146,0.17740903,3200.3,3200.1,21.55379827]
[1641758235342,3.99088119,3200.7,3200.2,3.84917386]
[1641758235543,5.28198693,3201.5,3200.2,3.84917386]
[1641758235544,0.10842702,3200.4,3200.3,27.590917]
[1641758235744,1.57548641,3200.6,3200.5,18.31]
[1641758235945,10.20998367,3202.3,3200.8,4.95]
[1641758235946,6.60248367,3202.3,3200.8,4.95]
[1641758236144,6.60248367,3202.3,3201.6,0.01248625]
[1641758236343,6.60248367,3202.3,3201.7,18.83807]
[1641758236542,6.60248367,3202.3,3201.7,21.51532122]
[1641758236785,5.29278698,3201.8,3201.7,5.28587122]
[1641758236984,5.29278698,3201.8,3201.7,5.58587122]
[1641758237194,0.01080005,3201.8,3201.7,5.58587122]
[1641758237386,0.01080005,3201.8,3201.7,5.50780122]
[1641758238787,0.01080005,3201.8,3201.7,4.31073225]
[1641758238986,0.01080005,3201.8,3201.7,3.61045647]
[1641758239187,0.01080005,3201.8,3201.7,3.08905429]
[1641758239989,0.01080005,3201.8,3201.7,0.45]
[1641758240634,0.01080005,3201.8,3201.2,0.07807]
[1641758240835,0.032396,3201.7,3201.2,0.07807]
[1641758241035,0.04262763,3201.7,3201.2,0.07807]
[1641758241232,0.78105,3201.5,3201.2,0.07807]
[1641758241434,0.0439262,3201.4,3200.9,0.45]
[1641758241633,0.0439262,3201.4,3199.7,0.00113684]
[1641758241634,0.0158203,3201.3,3200.5,0.45]
[1641758241834,0.02377823,3201.3,3200.5,0.45]
[1641758242037,0.00738951,3201.2,3200.5,0.45]
[1641758242234,0.7811467,3201.0,3200.5,0.45]
[1641758242432,1.41923184,3200.6,3200.1,0.45]
[1641758242837,0.00341054,3200.5,3200.1,0.45]
[1641758243332,1.51073494,3200.3,3200.1,0.45]
[1641758243731,0.00170527,3200.2,3200.1,0.45]
[1641758244187,4.55170527,3200.2,3200.1,0.45]
[1641758244985,4.55170527,3200.2,3199.7,0.00113684]
[1641758245186,0.04643598,3200.1,3199.7,0.00113684]
[1641758245387,0.04643598,3200.1,3199.5,0.00227369]
[1641758245388,0.04757283,3200.1,3199.5,0.00227369]
[1641758245584,0.00113685,3200.1,3199.5,0.00227369]
[1641758246086,12.5668672,3199.9,3198.5,0.45]
[1641758246286,0.07813,3199.8,3198.5,0.45]
[1641758246485,0.07983527,3199.8,3198.6,0.00511581]
[1641758246689,0.00113685,3199.7,3198.6,0.00511581]
[1641758246887,0.00113685,3199.7,3198.6,1.19525836]
[1641758247084,12.62813,3199.9,3198.6,1.19525836]
[1641758247085,1.35659848,3198.9,3198.6,5.31177102]
[1641758247286,0.78166,3199.2,3198.7,0.00454739]
[1641758247486,0.7816771,3199.3,3198.7,0.00454739]
[1641758247688,0.00170527,3199.8,3198.7,0.00454739]
[1641758247937,0.00170527,3199.8,3198.8,0.08027422]
[1641758248236,1.32418943,3199.7,3199.3,1.24601161]
[1641758248434,1.32418943,3199.7,3198.9,0.00341054]
[1641758248634,2.10453938,3199.7,3198.9,0.00341054]
[1641758248835,0.02794361,3199.6,3198.9,0.00341054]
[1641758249435,2.10453938,3199.7,3198.9,0.00341054]
[1641758249834,1.2781461,3199.0,3198.9,0.00341054]
[1641758251693,0.00162472,3199.5,3198.9,0.00341054]
[1641758251989,0.00162472,3199.5,3199.0,0.00284212]
[1641758252290,3.1259908,3200.0,3198.8,0.00397896]
[1641758252689,1.29024615,3199.2,3198.8,0.00397896]
[1641758257033,0.7815245,3199.6,3199.0,1.24652498]
[1641758257343,3.8205,3200.2,3199.1,0.00227369]
[1641758257344,4.6018759,3200.2,3199.1,0.00227369]
[1641758257537,4.6018759,3200.2,3199.1,3.13156009]
[1641758257538,3.8205,3200.2,3199.1,3.13156009]
[1641758257737,0.00170527,3199.8,3199.2,0.08027422]
[1641758257940,0.00170527,3199.8,3199.2,1.08197949]
[1641758258143,0.00113685,3199.7,3199.3,0.00113685]
[1641758258345,0.00113685,3199.7,3199.4,1.46497805]
[1641758258544,1.17476519,3199.8,3199.3,0.00113685]
[1641758258741,1.17476519,3199.8,3199.3,0.13417514]
[1641758258940,0.00113685,3199.7,3199.3,0.13417514]
[1641758259786,0.00033685,3199.7,3199.3,0.13417514]
[1641758259987,0.00033685,3199.7,3199.4,0.00136842]
[1641758260190,0.02031858,3199.6,3199.4,0.00136842]
[1641758260388,0.00033685,3199.7,3199.4,0.00136842]
[1641758260588,0.78184685,3199.7,3199.4,0.00136842]
[1641758261289,1.26605334,3199.6,3199.4,0.00136842]
[1641758261488,0.78184685,3199.7,3199.4,0.00136842]
[1641758261690,0.00033685,3199.7,3199.4,0.00136842]
[1641758261887,0.00033685,3199.7,3199.0,0.00364212]
[1641758262088,0.00033685,3199.7,3198.9,0.81548259]
[1641758262289,1.39457159,3199.0,3198.8,0.3]
[1641758262488,1.39457159,3199.0,3198.9,1.00059339]
[1641758262690,1.39457159,3199.0,3198.9,0.00113685]
[1641758263135,1.39457159,3199.0,3198.8,0.30170527]
[1641758263342,1.39457159,3199.0,3198.8,0.00170527]
[1641758263734,0.00284211,3199.6,3198.8,0.00170527]
[1641758263934,0.00284211,3199.6,3198.8,2.58733438]
[1641758264133,1.76631804,3200.3,3198.8,0.00170527]
[1641758264134,0.00227369,3199.5,3198.8,0.00170527]
[1641758264533,0.00170527,3199.4,3198.8,2.57640859]
[1641758264735,0.00170527,3199.4,3199.1,1.10406894]
[1641758264934,1.33352031,3199.3,3199.1,1.10406894]
[1641758265335,1.33238347,3199.3,3199.1,1.10406894]
[1641758265934,1.33238347,3199.3,3199.0,0.45]
[1641758267390,1.28238347,3199.3,3199.0,0.45]
[1641758271837,1.18824123,3199.2,3199.0,0.45]
[1641758272043,1.18824123,3199.2,3198.8,0.00170527]
[1641758272238,1.28238347,3199.3,3198.8,0.00170527]
[1641758272438,1.28238347,3199.3,3198.6,0.00284212]
[1641758272638,1.10698644,3198.7,3198.6,0.00284212]
[1641758273243,1.11364559,3199.4,3198.6,2.96986727]
[1641758273539,0.00113684,3199.3,3198.7,0.0022737]
[1641758273738,0.00113684,3199.3,3198.8,0.45]
[1641758273942,0.00284211,3199.2,3198.9,0.45]
[1641758274385,0.0022737,3199.1,3198.9,0.45]
[1641758274783,0.00170527,3199.0,3198.9,0.45]
[1641758274984,0.00170527,3199.0,3198.9,3.55]
[1641758275385,0.00170527,3199.0,3198.9,6.17891919]
[1641758277386,0.00170527,3199.0,3198.9,3.55]
[1641758277585,0.00170527,3199.0,3198.9,0.45]
[1641758285733,1.20374235,3199.1,3198.9,0.45]
[1641758287341,7.08110756,3199.0,3198.6,1.56698152]
[1641758287536,9.96476557,3199.0,3198.6,1.56698152]
[1641758287736,2.81021289,3198.9,3198.7,0.00170527]
[1641758288237,4.83171,3198.8,3198.7,0.00170527]
[1641758288539,4.83171,3198.8,3198.6,0.00227369]
[1641758288937,11.87580355,3198.7,3198.6,0.00227369]
[1641758289202,11.87580355,3198.7,3198.1,1.86925521]
[1641758289203,5.95300505,3198.7,3198.1,1.86925521]
[1641758289388,0.78182,3198.4,3198.1,1.86925521]
[1641758289590,0.78182,3198.4,3198.2,0.0022737]
[1641758289791,0.78182,3198.4,3198.1,1.80852891]
[1641758289993,1.12854099,3198.3,3198.1,1.80852891]
[1641758290289,1.12854099,3198.3,3198.1,0.24154739]
[1641758292495,1.12854099,3198.3,3198.2,1.56698152]
[1641758294136,0.0022737,3198.6,3198.2,1.56698152]
[1641758294534,0.00170528,3198.5,3198.2,1.56698152]
[1641758294936,0.00113685,3198.4,3198.2,1.56698152]
[1641758295335,1.1714793,3198.9,3198.3,1.25851369]
[1641758295735,0.00341055,3198.8,3198.3,1.25851369]
[1641758296134,0.00284212,3198.7,3198.3,1.25851369]
[1641758296536,1.45815536,3198.6,3198.1,0.24154739]
[1641758296985,0.00170528,3198.5,3198.1,0.19154739]
[1641758297387,0.00113685,3198.4,3198.1,0.19154739]
[1641758297689,0.00170528,3198.5,3198.1,0.19154739]
[1641758297888,0.00170528,3198.5,3198.1,1.75852891]
[1641758298088,0.00113685,3198.4,3198.1,1.75852891]
[1641758298488,0.00170528,3198.5,3198.1,1.75852891]
[1641758298686,0.00170528,3198.5,3198.1,0.19154739]
[1641758298887,0.00113685,3198.4,3198.1,0.19154739]
[1641758299286,0.00170528,3198.5,3198.1,0.19154739]
[1641758299688,0.00113685,3198.4,3198.1,0.19154739]
[1641758299987,0.00170528,3198.5,3198.1,0.19154739]
[1641758300445,0.00113685,3198.4,3198.1,0.19154739]
[1641758300845,0.00170528,3198.5,3198.1,0.19154739]
[1641758301249,0.00113685,3198.4,3198.1,0.19154739]
[1641758301646,1.45815536,3198.6,3198.1,0.19154739]
[1641758301647,0.00170528,3198.5,3198.1,0.19154739]
[1641758302051,0.00113685,3198.4,3198.1,0.19154739]
[1641758302348,0.00170528,3198.5,3198.1,0.19154739]
[1641758302751,0.00113685,3198.4,3198.1,0.19154739]
[1641758302948,0.00113685,3198.4,3198.3,11.36263002]
[1641758303149,0.00170528,3198.5,3198.3,11.81263002]
[1641758303348,1.18816159,3199.5,3198.3,13.77230424]
[1641758303349,0.00113685,3198.4,3198.3,13.77230424]
[1641758303549,0.00113685,3198.4,3198.3,19.39630424]
[1641758303752,0.00113685,3198.4,3198.3,40.05059524]
[1641758304198,1.53185758,3199.5,3198.9,0.2204]
[1641758304386,1.53185758,3199.5,3199.0,0.45]
[1641758304586,0.00682108,3199.6,3199.2,1.56254]
[1641758304786,0.00682108,3199.6,3199.3,2.01242]
[1641758304988,2.6837426,3200.2,3199.3,2.61242]
[1641758304989,0.00625266,3199.5,3199.3,2.61242]
[1641758305187,0.00625266,3199.5,3199.4,0.08027422]
[1641758305394,1.32636156,3200.3,3200.0,1.22479481]
[1641758305790,0.01023162,3200.2,3200.0,1.22479481]
[1641758305987,1.42351248,3200.1,3200.0,1.22479481]
[1641758306187,1.43317568,3200.1,3200.0,1.22479481]
[1641758307491,0.0096632,3200.1,3200.0,1.22479481]
[1641758308944,0.0096632,3200.1,3200.0,1.67479481]
[1641758311789,1.56184857,3200.6,3200.1,1.1014268]
[1641758311989,1.56184857,3200.6,3200.2,0.45]
[1641758312395,0.00568424,3201.1,3200.2,0.45]
[1641758312592,0.00568424,3201.1,3200.3,0.08027422]
[1641758312792,0.00511581,3201.0,3200.6,0.78094]
[1641758313002,0.00511581,3201.0,3200.7,0.45]
[1641758313194,0.00454739,3200.9,3200.7,0.45]
[1641758313392,0.00454739,3200.9,3200.8,1.24809608]
[1641758313592,1.48514298,3201.3,3200.8,1.69809608]
[1641758313993,0.00625266,3201.2,3201.0,1.06765506]
[1641758314196,0.00625266,3201.2,3201.1,0.45]
[1641758314394,1.48514298,3201.3,3201.1,0.45]
[1641758315296,0.5984057,3201.0,3200.7,1.20542614]
[1641758315541,2.72984107,3201.3,3200.7,1.65542614]
[1641758315744,0.00454739,3200.9,3200.7,0.45]
[1641758316141,1.51722683,3200.8,3200.7,0.45]
[1641758320901,0.00397896,3200.8,3200.7,0.45]
[1641758321298,0.00397896,3200.8,3200.7,3.7]
[1641758321498,0.00397896,3200.8,3200.7,3.78027422]
[1641758321697,0.00397896,3200.8,3200.7,0.53027422]
[1641758322097,0.00397896,3200.8,3200.7,1.75462877]
[1641758322701,0.00397896,3200.8,3200.7,0.53027422]
[1641758323145,0.00397896,3200.8,3200.7,0.45]
[1641758323939,1.27735059,3200.8,3200.7,0.45]
[1641758324642,0.00397896,3200.8,3200.7,0.45]
[1641758325843,0.00397896,3200.8,3200.7,2.00647959]
[1641758326889,0.00397896,3200.8,3200.7,0.45]
[1641758329395,0.00397896,3200.8,3200.7,1.4353]
[1641758329594,0.00397896,3200.8,3200.7,1.81557422]
[1641758329893,0.00397896,3200.8,3200.7,7.73957422]
[1641758330093,0.00397896,3200.8,3200.7,27.04957422]
[1641758330294,1.27920968,3201.9,3201.6,1.47629689]
[1641758330544,0.00160664,3201.9,3201.8,1.08915253]
[1641758330745,0.00160664,3201.9,3201.8,1.53915253]
[1641758331042,0.0078593,3201.9,3201.8,1.53915253]
[1641758332040,0.0078593,3201.9,3201.8,0.45]
[1641758332242,0.00625266,3201.9,3201.8,0.45]
[1641758333249,4.00625266,3201.9,3201.8,0.45]
[1641758334292,0.00625266,3201.9,3201.8,0.45]
[1641758334888,0.00625266,3201.9,3201.3,0.45]
[1641758335089,1.06838122,3201.8,3201.3,0.45]
[1641758335290,1.07406546,3201.8,3201.3,0.45]
[1641758335489,0.00511582,3201.7,3201.3,0.45]
[1641758335791,0.00454739,3201.6,3201.3,0.45]
[1641758336191,0.00397897,3201.5,3201.3,0.45]
[1641758336494,1.20685016,3201.4,3201.3,0.45]
[1641758336691,1.15685016,3201.4,3201.3,0.45]
[1641758336891,0.00341055,3201.4,3201.3,0.45]
[1641758337090,0.00341055,3201.4,3201.3,5.49281228]
[1641758337292,0.00341055,3201.4,3201.3,24.08281228]
[1641758337491,0.00341055,3201.4,3201.3,25.38281228]
[1641758337690,0.00341055,3201.4,3201.3,26.59701228]
[1641758338140,0.00341055,3201.4,3201.3,27.78620359]
[1641758338341,0.00341055,3201.4,3201.3,4.82620359]
[1641758338540,0.00341055,3201.4,3201.3,4.81366553]
[1641758339144,0.00341055,3201.4,3201.3,21.90946553]
[1641758339341,0.00341055,3201.4,3201.3,21.98755553]
[1641758339544,0.00341055,3201.4,3201.3,23.11815553]
[1641758339943,2.67484614,3203.0,3201.6,18.31]
[1641758340143,2.65835555,3203.0,3202.3,0.78046]
[1641758340342,2.65835555,3203.0,3202.7,1.32915085]
[1641758340343,1.16906234,3202.8,3202.7,1.32915085]
[1641758340545,0.00852635,3202.9,3202.7,1.77915085]
[1641758340843,2.65835555,3203.0,3202.7,1.77915085]
[1641758340844,0.00795792,3202.8,3202.7,1.77915085]
[1641758341243,0.00795792,3202.8,3202.7,5.32915085]
[1641758341444,1.18816159,3204.0,3202.8,11.9]
[1641758341714,1.58124956,3204.2,3204.1,2.95978675]
[1641758341896,1.58124956,3204.2,3204.1,6.01652093]
[1641758342097,1.58920749,3204.2,3204.1,7.01652093]
[1641758342294,1.58920749,3204.2,3204.1,7.01732093]
[1641758342695,1.58920749,3204.2,3204.1,8.16765657]
[1641758343097,0.00795793,3204.2,3204.1,8.16765657]
[1641758343696,0.00795793,3204.2,3204.1,8.94767657]
[1641758344097,0.00795793,3204.2,3204.1,5.20178675]
[1641758344401,0.00795793,3204.2,3204.1,3.41058675]
[1641758345440,0.00795793,3204.2,3204.1,6.89030143]
[1641758346462,0.00795793,3204.2,3204.1,8.49030143]
[1641758346643,0.00795793,3204.2,3204.1,17.19843075]
[1641758346951,0.00160663,3204.7,3204.1,17.19843075]
[1641758346952,0.00160663,3204.7,3204.2,10.4]
[1641758347142,0.00160663,3204.7,3204.4,18.31]
[1641758347344,0.00807865,3205.4,3204.7,5.3]
[1641758347545,0.00807865,3205.4,3205.3,5.624]
[1641758347744,0.00807865,3205.4,3205.3,6.8099]
[1641758347945,0.00807865,3205.4,3205.3,26.4199]
[1641758348142,0.00807865,3205.4,3205.3,28.93253329]
[1641758348344,0.00807865,3205.4,3205.3,10.70280751]
[1641758348744,0.00807865,3205.4,3205.3,10.78079751]
[1641758349405,0.00807865,3205.4,3205.3,8.28663329]
[1641758350005,0.00807865,3205.4,3205.3,9.88663329]
[1641758350705,0.00807865,3205.4,3205.3,6.074]
[1641758350905,0.00807865,3205.4,3205.3,0.45]
[1641758351705,0.00807865,3205.4,3205.3,1.78971047]
[1641758351904,0.00807865,3205.4,3205.3,2.08971047]
[1641758352104,0.00807865,3205.4,3205.3,2.38971047]
[1641758352705,0.00807865,3205.4,3205.3,3.87500208]
[1641758352943,0.00807865,3205.4,3205.3,3.57500208]
[1641758353143,0.00807865,3205.4,3205.3,2.08971047]
[1641758353343,0.00807865,3205.4,3205.3,1.78971047]
[1641758353944,0.00160662,3205.9,3205.3,1.78971047]
[1641758354145,1.26759789,3205.4,3205.3,1.78971047]
[1641758354344,0.00909478,3205.8,3205.3,1.78971047]
[1641758354746,0.00852635,3205.7,3205.3,1.78971047]
[1641758355145,0.00795793,3205.6,3205.3,1.78971047]
[1641758355345,1.1560851,3205.6,3205.3,1.78971047]
[1641758355546,0.00738951,3205.5,3205.0,0.03455011]
[1641758355749,0.00738951,3205.5,3205.1,0.07799]
[1641758356047,0.00682108,3205.4,3205.2,1.52973]
[1641758356246,0.00682108,3205.4,3205.3,26.07902543]
[1641758356447,0.00160662,3205.9,3205.3,28.00418375]
[1641758356699,0.00160662,3205.9,3205.8,1.03493223]
[1641758356894,0.00160662,3205.9,3205.8,2.97477187]
[1641758357098,0.01126982,3205.9,3205.8,3.57477187]
[1641758357298,0.01126982,3205.9,3205.8,6.23124606]
[1641758357698,2.66958068,3207.4,3206.0,5.15]
[1641758357898,3.84701807,3207.5,3206.1,18.76]
[1641758358096,3.84701807,3207.5,3206.1,1.05]
[1641758358301,3.84701807,3207.5,3206.1,0.45]
[1641758358497,0.01289852,3207.1,3206.1,0.45]
[1641758358697,0.01217416,3207.1,3206.1,0.45]
[1641758358897,1.34069792,3206.3,3206.1,0.45]
[1641758359096,1.34069792,3206.3,3205.7,0.45]
[1641758359297,0.00170527,3206.2,3205.3,0.45]
[1641758359697,0.00113685,3206.1,3205.4,0.00284212]
[1641758359897,1.02905718,3205.7,3205.4,0.00284212]
[1641758360104,1.30650807,3205.6,3205.4,0.00284212]
[1641758360848,1.30650807,3205.6,3205.0,0.00511581]
[1641758362942,1.09497193,3205.2,3205.0,0.00511581]
[1641758363745,0.04712835,3205.0,3204.7,0.00682108]
[1641758363944,4.05875009,3205.0,3204.7,0.00682108]
[1641758364213,0.01756539,3204.9,3204.7,0.00682108]
[1641758364397,1.21759405,3204.4,3204.2,0.0096632]
[1641758364597,1.21759405,3204.4,3204.1,3.40978675]
[1641758364797,1.21759405,3204.4,3204.1,3.35978675]
[1641758365202,1.12758963,3204.3,3204.1,3.35978675]
[1641758367401,1.07758963,3204.3,3204.1,3.35978675]
[1641758368643,5.496763,3204.2,3204.1,3.35978675]
[1641758368844,1.07758963,3204.3,3204.1,3.35978675]
[1641758369049,1.07758963,3204.3,3204.1,3.37001837]
[1641758369545,1.07758963,3204.3,3204.1,2.92001837]
[1641758369745,6.5,3204.2,3204.1,2.92001837]
[1641758370147,14.07801269,3204.2,3202.8,0.45]
[1641758370351,17.88571269,3204.2,3202.8,0.45]
[1641758370548,17.88571269,3204.2,3202.9,0.00682108]
[1641758370747,1.32385025,3203.3,3202.9,0.00682108]
[1641758370948,1.21652824,3203.2,3202.9,0.00682108]
[1641758371349,1.21652824,3203.2,3203.0,0.45]